Cogmind - Beta 10.2 @@@ ROGUE MODE // 2021.05.17 @ 19:40:33 Player: Trantor Result: Destroyed by D-53 Grenadier with Mini Grenade Launcher Performance ------------- Evolutions (0) 0 Regions Visited (2) 400 Robots Destroyed (15) 75 Value Destroyed (202) 202 Prototype IDs (2) 40 Alien Tech Used (0) 0 Bonus (-176) -176 TOTAL SCORE: 541 Bonus ------- Friendly Fire -176 Cogmind --------- Core Integrity 0/250 Matter 241/300 Energy 100/100 System Corruption 0% Temperature Cool (0) Movement Core (300) Ox5 Location -10/Mines Parts ------- > --- POWER (1) -------- (None) > --- PROPULSION (2) --- (None) > --- UTILITY (2) ------ Medium Storage Unit Medium Storage Unit > --- WEAPON (2) ------- (None) > --- INVENTORY (12) --- Light Ion Engine Compact Wheel Compact Wheel High-capacity Matter Pod (200) Advanced Sensor Array Transmission Jammer Hacking Suite Beamcaster Heavy Assault Rifle Heavy Assault Rifle Peak State ------------ > --- POWER ------------ Ion Engine > --- PROPULSION ------- Compact Wheel Compact Wheel > --- UTILITY ---------- Small Storage Unit Medium Storage Unit > --- WEAPON ----------- Heavy Assault Rifle Heavy Assault Rifle > --- INVENTORY -------- Light Ion Engine Compact Wheel Compact Wheel Advanced Sensor Array Hacking Suite Beamcaster Heavy Assault Rifle Heavy Assault Rifle Grenade Launcher Grenade Launcher [Rating: 11] Favorites ----------- Power Ion Engine Engine Ion Engine Propulsion Aluminum Leg Leg Aluminum Leg Wheel Compact Wheel Utility Small Storage Unit Storage Small Storage Unit Weapon Assault Rifle Energy Gun Small Laser Ballistic Gun Assault Rifle Launcher Grenade Launcher Build | -11 -10 -10 ------- Run | Scr Mat Min Slots Evolved . | . . . Power . | . . . Propulsion . | . . . Utility . | . . . Weapon . | . . . Parts Attached 13 | . 9 4 Power 1 | . 1 . Engine 1 | . 1 . Core . | . . . Reactor . | . . . Propulsion 2 | . 2 . Treads . | . . . Leg . | . . . Wheel 2 | . 2 . Hover . | . . . Flight . | . . . Utility 3 | . 1 2 Device . | . . . Storage 3 | . 1 2 Processor . | . . . Hackware . | . . . Protection . | . . . Artifact . | . . . Weapon 7 | . 5 2 Energy Gun . | . . . Energy Cannon . | . . . Ballistic Gun 5 | . 4 1 Ballistic Cannon . | . . . Launcher 2 | . 1 1 Special Weapon . | . . . Impact Weapon . | . . . Slashing Weapon . | . . . Piercing Weapon . | . . . Special Melee Weapon . | . . . Unidentified Prototypes . | . . . Parts Lost 6 | . . 6 Power 1 | . . 1 Propulsion 2 | . . 2 Utility . | . . . Weapon 3 | . . 3 Highest Loss Streak 6 | . . 6 Average Slot Usage (%) 95 | . 95 95 Engine 13 | . 14 12 Leg 14 | . 16 . Wheel 13 | . 11 26 Storage 24 | . 24 28 Energy Gun 1 | . 1 . Ballistic Gun 26 | . 26 25 Naked Turns . | . . . Heaviest Build 27 | 12 23 27 Greatest Support 32 | 20 32 32 Greatest Overweight (x) 7 | . 1 7 Average Overweight (x) . | . . . Largest Inventory Capacity 12 | 6 10 12 Average Capacity 9 | 6 8 11 Most Carried 11 | 6 10 11 Average Carried 8 | 6 8 10 Final Capacity 12 | 6 10 12 Final Carried 10 | 6 10 10 Class Distribution -------------------- 100% | Mutant Dominant Class ---------------- Mutant | -10/Materials Mutant | -10/Mines Resources | -11 -10 -10 ----------- Run | Scr Mat Min Matter Collected 571 | 200 279 92 Remotely . | . . . Salvage Created 380 | . 334 46 Parts 33 | . 32 1 Haulers Intercepted 2 | . 2 . Recyclers Shooed . | . . . Parts Field Recycled . | . . . Retrieved Matter . | . . . Parts Self-Destructed . | . . . Prevented . | . . . Kills | -11 -10 -10 ------- Run | Scr Mat Min Combat Hostiles Destroyed 22 | . 11 11 Guns 9 | . 8 1 AOE 13 | . 3 10 Classes Destroyed 6 | . 4 2 Hauler 2 | . 2 . Operator 1 | . 1 . Swarmer 8 | . 8 . Grunt 3 | . 3 . Assembled 11 | . . 11 Guerrilla 1 | . . 1 Best Kill Streak 11 | . 3 11 Combat Bots Only 11 | . 3 11 Max Kills in Single Turn 3 | . 2 3 Gunslinging . | . . . Exploded 3 | . 2 3 Melee . | . . . Uniques/NPCs Destroyed . | . . . Combat | -11 -10 -10 -------- Run | Scr Mat Min Damage Taken 1097 | . 325 772 Core 283 | . 24 259 Absorbed by Shields . | . . . Core Remaining (%) 100 | 100 . . Volleys Fired 54 | . 45 9 Largest 2 | . 2 2 Hottest 60 | . 60 46 Shots Fired 98 | . 88 10 Gun 89 | . 86 3 Cannon . | . . . Launcher 9 | . 2 7 Special . | . . . Kinetic 80 | . 77 3 Thermal 9 | . 9 . Explosive 9 | . 2 7 Electromagnetic . | . . . Robot Hit Streak 7 | . 6 7 Robot Miss Streak 3 | . 3 1 Penetration Max . | . . . Secondary Targets . | . . . Shots Hit Robots 54 | . 52 2 Core Hits 54 | . 22 32 Critical Hits . | . . . Critical Kills . | . . . Critical Parts Destroyed . | . . . Melee Attacks . | . . . Impact . | . . . Slashing . | . . . Piercing . | . . . Sneak Attacks . | . . . Combat Hostiles . | . . . Follow-up Attacks . | . . . Damage Inflicted 1665 | . 737 928 Guns 635 | . 590 45 Cannons . | . . . Explosions 1030 | . 147 883 Melee . | . . . Ramming . | . . . Kinetic 569 | . 524 45 Thermal 66 | . 66 . Explosive 1030 | . 147 883 Electromagnetic . | . . . Impact . | . . . Slashing . | . . . Piercing . | . . . Highest Corruption . | . . . Average Corruption . | . . . Corruption Purged . | . . . Overload Shots . | . . . Overflow Damage 9 | . . 9 Projectiles . | . . . Explosions 9 | . . 9 Melee . | . . . Knockbacks . | . . . Impact . | . . . Kinetic . | . . . Secondary . | . . . Self-Inflicted Damage 15 | . . 15 Shots 1 | . . 1 Rammed . | . . . Targets Rammed . | . . . Kicked . | . . . Crushed . | . . . Highest Temperature 15 | . 12 15 Average Temperature 9 | . 8 12 Received Heat Transfer 95 | . 75 20 Siege Activations . | . . . Robots Corrupted . | . . . Combat Hostiles . | . . . Parts Fried . | . . . Impact Corruptions . | . . . Robots Melted . | . . . Combat Hostiles . | . . . Parts Melted . | . . . Heat Transferred 150 | . 150 . Parts Sabotaged . | . . . Parts Stolen . | . . . Parts Stripped . | . . . Power Chain Reactions . | . . . Missiles Intercepted . | . . . Alert | -11 -10 -10 ------- Run | Scr Mat Min Peak Influence 350 | . 350 49 Initial 49 | . . 49 Average 143 | . 160 45 Maximum Alert Level 1 | . 1 . Low Security (%) 67 | 100 61 100 Level 1 32 | . 38 . Level 2 . | . . . Level 3 . | . . . Level 4 . | . . . Level 5 . | . . . High Security . | . . . Max Security . | . . . Squads Dispatched 3 | . 3 . Investigation 1 | . 1 . Extermination . | . . . Reinforcement 2 | . 2 . Assault . | . . . Garrison . | . . . Intercept . | . . . Construction Impeded . | . . . Haulers Reinforced . | . . . Stealth | -11 -10 -10 --------- Run | Scr Mat Min Distress Signals 4 | . 4 . Communications Jammed . | . . . Distress Signals . | . . . Times Spotted 45 | . 26 19 Peak Tracking Total 12 | . 6 12 Tactical Retreats 1 | . 1 . Traps | -11 -10 -10 ------- Run | Scr Mat Min Traps Triggered 2 | . 2 . Indirectly . | . . . Trap Hack Attempts . | . . . Triggered . | . . . Disarmed . | . . . Reprogrammed . | . . . Reused . | . . . Traps Extracted . | . . . Installed . | . . . Triggered . | . . . Machines | -11 -10 -10 ---------- Run | Scr Mat Min Machines Disabled . | . . . Max in Single Turn . | . . . Machines Sabotaged . | . . . Garrisons Compromised . | . . . Overloaded Fab Kills . | . . . Fab Network Shutdowns . | . . . Hacking | -11 -10 -10 --------- Run | Scr Mat Min Machines Accessed 6 | . 5 1 Terminals 5 | . 5 . Fabricators . | . . . Repair Stations . | . . . Recycling Units . | . . . Scanalyzers . | . . . Garrison Access . | . . . Total Hacks 16 | . 15 1 Successful 11 | . 10 1 Failed 4 | . 4 . Catastrophic 1 | . 1 . Database Lockouts 1 | . 1 . Manual 9 | . 9 . Terminals 15 | . 15 . Fabricators . | . . . Repair Stations . | . . . Recycling Units . | . . . Scanalyzers . | . . . Garrison Access . | . . . Terminal Hacks 7 | . 6 1 Record 3 | . 3 . Robot Analysis 2 | . 2 . Prototype ID Bank 1 | . 1 . Open Door 1 | . . 1 Fabricator Hacks . | . . . Repair Station Hacks . | . . . Recycling Unit Hacks . | . . . Scanalyzer . | . . . Garrison Access Hacks . | . . . Unauthorized Hacks 4 | . 4 . Terminals 4 | . 4 . Assimilate 2 | . 2 . Botnet 2 | . 2 . Fabricators . | . . . Repair Stations . | . . . Recycling Units . | . . . Scanalyzers . | . . . Garrison Access . | . . . Data Cores Recovered . | . . . Used . | . . . Hacking Detections 3 | . 3 . Full Trace Events . | . . . Feedback Events . | . . . Feedback Blocked . | . . . Robot Schematics Acquired . | . . . Robots Built . | . . . Matter . | . . . Time . | . . . Total Robot Build Rating . | . . . Part Schematics Acquired . | . . . Parts Built . | . . . Matter . | . . . Time . | . . . Total Part Build Rating . | . . . Parts Repaired . | . . . Time . | . . . Parts Recycled . | . . . Recycled Matter . | . . . Retrieved Matter . | . . . Retrieved Components . | . . . Parts Scanalyzed . | . . . Part Schematics Acquired . | . . . Parts Damaged . | . . . Bothacking | -11 -10 -10 ------------ Run | Scr Mat Min Used RIF Installer . | . . . Robots Hacked . | . . . Non-combat . | . . . Combat . | . . . Robot Hacks Applied . | . . . Relay Couplers Released . | . . . Robots Rewired . | . . . Allies Hacked . | . . . Hacks Repelled . | . . . Allies | -11 -10 -10 -------- Run | Scr Mat Min Total Allies 1 | . 1 . Largest Group 1 | . 1 1 Highest-Rated Group 10 | . 10 10 Highest-Rated Ally 10 | . 10 10 Total Orders . | . . . Ally Attacks . | . . . Total Damage . | . . . Kills . | . . . Allies Corrupted . | . . . Allies Melted . | . . . Intel | -11 -10 -10 ------- Run | Scr Mat Min Robot Analysis Total 2 | . 2 . Derelict Logs Recovered 1 | . . 1 Drone Launches . | . . . Drone Recoveries . | . . . Exploration | -11 -10 -10 ------------- Run | Scr Mat Min Turns Passed 1385 | 3 1178 204 Spaces Moved 942 | 3 771 168 Core 3 | . . 3 Treads . | . . . Legs 332 | 3 329 . Wheels 607 | . 442 165 Hover . | . . . Flight . | . . . Fastest Speed 100 | 120 100 100 Average Speed 112 | 120 113 104 Slowest Speed 400 | 120 150 400 Overloaded Moves . | . . . Propulsion Burnouts . | . . . Robots Hopped . | . . . Cave-ins Triggered . | . . . Exploration Rate (%) 47 | 2 98 41 Regions Visited 2 Branch Regions 1 Pre-discovered Areas . | . . . Known Exits Taken . | . . . Unknown Exits Taken 2 | 1 1 . Scrap Searched . | . . . Spaces Dug . | . . . Terrain Destroyed 28 | . . 28 Melee . | . . . Projectile . | . . . AOE 28 | . . 28 Terrain Rammed . | . . . Walls Destroyed . | . . . Machines Disabled . | . . . Actions | -11 -10 -10 --------- Run | Scr Mat Min Total 1180 | 2 988 190 Wait 142 | . 142 . Move 940 | 2 770 168 Hop . | . . . Pick Up 14 | . 10 4 Fast Attach 4 | . 4 . Attach 1 | . . 1 Detach . | . . . Swap 8 | . 5 3 Drop 17 | . 12 5 Fire 54 | . 45 9 Melee . | . . . Ram . | . . . Kick . | . . . Crush . | . . . Escape Stasis . | . . . Rewire . | . . . Trap . | . . . Miscellaneous . | . . . Route ------- -11/Scrapyard -10/Materials (discovered 5 exits: [*Mat x3] / *Min x2) -10/Mines History --------- Turn | Location | Event 1 | -11/Scrapyard | Discovered new exit (range 3) 4 | -11/Scrapyard | Entered Materials 189 | -10/Materials | Discovered new exit (range 3) 289 | -10/Materials | Discovered new exit (range 15) 314 | -10/Materials | Build established: Mutant 397 | -10/Materials | Discovered new exit (range 14) 802 | -10/Materials | Discovered new exit (range 16) 923 | -10/Materials | Central database locked down 965 | -10/Materials | Discovered new exit (range 7) 1182 | -10/Materials | Entered Mines 1182 | -10/Mines | Accompanied by 1 ally 1190 | -10/Mines | Met a Derelict who couldn't figure out how to use a Trap Extractor 1336 | -10/Mines | Assembled infested the area 1341 | -10/Mines | Assisted by a Guerilla fighting off Assembled 1381 | -10/Mines | Destroyed 11 combat bots 1381 | -10/Mines | Core integrity fell below 50% 1384 | -10/Mines | Core integrity fell below 20% 1386 | -10/Mines | Destroyed by D-53 Grenadier with Mini Grenade Launcher Last Messages --------------- 01359_ The unstable cave ceiling collapses. 01359_ Grenade Launcher destroyed. 01360_ as-34004 destroyed. 01364_ C-30 ARC bursts open, deploying its payload. 01364_ D-53 Grenadier unfolds itself. 01366_ Knocked back. 01367_ as-72831 destroyed. 01367_ as-68780 destroyed. 01369_ as-43575 destroyed. 01369_ Ion Engine destroyed. 01372_ Technician 1a destroyed. 01372_ Acquired 10 matter. 01374_ Com. Wheel destroyed. 01376_ The unstable cave ceiling collapses. 01378_ Com. Wheel destroyed. 01378_ K-01 Serf collects debris. 01378_ Hvy. Assault Rifle destroyed. 01381_ The unstable cave ceiling collapses. 01383_ K-01 Serf collects debris. 01384_ The unstable cave ceiling collapses. Map ----- +----------------------------------------------------+ | ?????????????# #####"[^=] #??????????? | | ?????????????# #???#"= ]#X #??????????? | | ?????????????# #???#"/### #??????????? | | ?????????????# #???####?### #??????????? | | ?????????????# #??????????############??????????? | | ?????????????# #????????????????????????????????? | | ?????????????# #?####???????????????????????????? | | ?????# ####### ### ##??????????????????????????? | | ?????# "%## ###????????????????????????? | | ??????##### ####?????????????????????? | | ?????????## """ ## ##????????????????????? | | ????????## """ ## #????????????????????? | | ????????# """ ### #????????????????????? | | ??????? ### ##????????????????????? | | ??????## # # #?????????????????????? | | ???????## ### # ######????????????????? | | ????????###??# a # #????????????????? | | ?????????????# d #????????????????? | | ?????????????#### #d ##???????????????? | | ???????????????## % ##??????????????? | | ???????????????# #####??????????? | | ???????????????# *%! ??????????? | | ???????????????# = ??????????? | | ???????????????# #?????????????? | | ???????????????# %$ #?????????????? | | ???????????????# @# #?????????????? | | ??????????????# #?????????????? | | ?????????????# ##?????????????? | | ?????????????# ##### "#??????????????? | | ??????????? ####?????###??????????????? | | ??????????? ##?????????????????????????? | | ??????????### % #??????????????????????????? | | ????????????# !##??????????????????????????? | | ????????????# #????????????????????????????? | | ???????????? ?????????????????????????????? | | ????????????? ?????????????????????????????? | | ?????????????? %! #?????????????????????????????? | | ????????????????# ???????????????????????????????? | | ?????????????????????????????????????????????????? | | ?????????????????????????????????????????????????? | | ?????????????????????????????????????????????????? | | ?????????????????????????????????????????????????? | | ?????????????????????????????????????????????????? | | ?????????????????????????????????????????????????? | | ?????????????????????????????????????????????????? | | ?????????????????????????????????????????????????? | | ?????????????????????????????????????????????????? | | ?????????????????????????????????????????????????? | | ?????????????????????????????????????????????????? | | ?????????????????????????????????????????????????? | +----------------------------------------------------+ Best States ------------- Heat Dissipation 25 Energy Generation 10 Energy Capacity 250 Matter Stores 300 Matter Capacity 300 Sight Range 16 Terrain Scan Density 10 Evasion (%) 40 Item Schematics ----------------- None Robot Schematics ------------------ None Fabricated ------------ Nothing Alien Tech Used ----------------- None Achievements -------------- None Challenges ------------ None Game ------ Seed HypervelocityBeamCycler Manual? 0 Play Time 00:14:46 Cumulative 107.5 hours Start 2021.05.17 @ 19:25:53 End 2021.05.17 @ 19:40:33 Sessions 1 Manual Loads 0 Difficulty Rogue Special Mode None Game No. 70 Rogue 45 Adventurer 25 Explorer 0 Win Type - Total 0 Types 0/0/0/0/0/0/0/0/0 Lore% 39 Gallery% 39 Achievement% 34 Wizard Run 0 Options --------- ASCII 0 Keyboard 1 Movement Vi Keybinds 1 Fullscreen 2 Font 18/SmallcapsGlow Map View 76x50 Tactical HUD 1 Map Filters NONE Filters NONE Steam 1 RUN: 0fa3c35e-31bc-4ccc-b4df-10723fbf8eab